bitfinex/quotes_ETHUSD_20260306
["timestamp","ask_amount","ask_price","bid_price","bid_amount"]
[1772818700523,0.47570346,1957.5,1956.3,1.75723225]
[1772818700740,3.60377614,1958.1,1956.3,1.75723225]
[1772818700741,0.47570346,1958.3,1956.4,0.47930965]
[1772818700898,0.47570346,1958.2,1956.4,0.47930965]
[1772818701093,0.47570346,1958.2,1956.6,0.47930965]
[1772818701423,0.47570346,1958.2,1956.8,0.47930965]
[1772818701996,3.81999518,1958.5,1956.8,0.47930965]
[1772818702803,5.58145471,1958.6,1957.2,0.47930965]
[1772818702804,0.47570346,1958.6,1957.2,0.47930965]
[1772818703010,0.47570346,1959.0,1957.2,0.47930965]
[1772818703211,0.47570346,1959.0,1957.1,0.14948499]
[1772818703212,0.47570346,1959.0,1957.4,0.47930965]
[1772818703439,0.47570346,1959.0,1957.6,0.47930965]
[1772818703935,0.47570346,1959.0,1957.7,1.48130965]
[1772818704260,0.47570346,1959.0,1957.3,0.47930965]
[1772818704540,0.47570346,1958.7,1957.4,1.002]
[1772818704753,0.47570346,1958.4,1956.8,5.10986203]
[1772818705550,2.34477614,1958.2,1956.8,5.10986203]
[1772818705752,0.47570346,1958.1,1956.8,5.10986203]
[1772818706711,0.47570346,1958.1,1956.6,5.11060458]
[1772818706712,1.27681307,1958.0,1956.6,5.11060458]
[1772818706921,1.27681307,1958.0,1956.6,5.58991423]
[1772818707231,1.75251653,1958.0,1956.6,5.58991423]
[1772818707541,1.75225574,1958.4,1956.8,0.47930965]
[1772818707714,0.47570346,1958.3,1956.8,0.47930965]
[1772818708338,0.47570346,1958.3,1956.9,1.003]
[1772818708711,1.27681307,1958.0,1956.5,1.27759607]
[1772818708912,0.47570346,1957.9,1956.5,2.75990572]
[1772818709349,1.27681307,1958.0,1956.6,0.47930965]
[1772818709849,0.47570346,1957.9,1956.6,0.47930965]
[1772818710217,0.47570346,1957.9,1956.5,1.27759607]
[1772818710422,0.47570346,1957.9,1956.5,2.28059607]
[1772818711057,0.47570346,1957.7,1956.5,2.28059607]
[1772818711367,1.2769435,1957.8,1956.6,0.47930965]
[1772818711541,0.47570346,1958.1,1956.6,0.47930965]
[1772818711737,5.10631745,1958.4,1956.6,0.47930965]
[1772818712139,0.49452089,1958.5,1956.8,0.49385125]
[1772818712365,1.77105126,1958.5,1957.0,0.49385125]
[1772818712969,1.77113836,1958.3,1957.2,1.27733496]
[1772818713170,0.49452089,1957.7,1956.5,1.27779197]
[1772818713368,1.27661747,1958.3,1956.5,1.27779197]
[1772818713369,0.49452089,1958.1,1956.6,0.49385125]
[1772818713754,0.49452089,1958.1,1956.7,1.49785125]
[1772818713951,0.49452089,1958.1,1956.8,0.49385125]
[1772818714156,0.49452089,1958.1,1956.7,1.004]
[1772818714673,0.49452089,1958.1,1956.8,0.49385125]
[1772818715073,0.49452089,1958.1,1956.9,1.27753078]
[1772818715074,0.001,1957.8,1956.9,1.27753078]
[1772818715942,0.001,1957.8,1956.9,1.77138203]
[1772818716872,0.001,1957.8,1957.0,0.49385125]
[1772818717078,0.001,1957.8,1956.7,1.27766136]
[1772818717251,0.001,1957.8,1956.9,1.004]
[1772818717600,0.001,1957.8,1956.4,1.27893634]
[1772818717601,2.34477614,1957.6,1956.4,1.27893634]
[1772818717742,0.001,1957.8,1956.4,1.27893634]
[1772818717743,0.49552089,1957.8,1956.4,1.27893634]
[1772818718078,0.49552089,1957.8,1956.4,1.77278759]
[1772818718300,0.49552089,1957.8,1956.5,0.49385125]
[1772818718907,0.49552089,1957.8,1956.4,1.27893634]
[1772818719110,0.49452089,1957.6,1956.4,1.27893634]
[1772818719400,1.27799441,1957.8,1956.5,0.49385125]
[1772818719592,0.001,1957.8,1956.5,0.49385125]
[1772818719789,1.27794357,1957.8,1956.5,0.49385125]
[1772818720102,1.27794963,1957.8,1956.6,0.49385125]
[1772818720605,1.77247052,1957.8,1956.6,0.49385125]
[1772818720901,0.49452089,1957.7,1956.4,1.27893634]
[1772818721075,0.49452089,1957.5,1956.4,1.27893634]
[1772818721673,1.27704416,1957.7,1956.5,0.49385125]
[1772818722506,1.27704416,1957.7,1956.4,0.0011]
[1772818722507,2.34477614,1957.4,1956.4,0.0011]
[1772818722681,0.49452089,1957.3,1956.4,0.0011]
[1772818723186,1.27733496,1957.2,1956.4,0.0011]
[1772818724201,0.49452089,1957.3,1956.4,0.0011]
[1772818724392,1.27707396,1957.6,1956.4,0.0011]
[1772818724694,1.77159485,1957.6,1956.4,0.0011]
[1772818724993,0.49452089,1957.5,1956.2,0.02]
[1772818725202,0.49452089,1957.0,1955.2,0.49385125]
[1772818725514,0.49452089,1957.0,1955.1,5.11430471]
[1772818725515,0.49452089,1957.0,1955.4,0.49385125]
[1772818725756,2.34477614,1956.4,1955.2,0.49385125]
[1772818726032,2.38632748,1957.0,1955.2,0.49385125]
[1772818726241,2.38632748,1957.2,1955.6,0.49385125]
[1772818726407,2.38632748,1957.5,1956.6,0.0011]
[1772818726606,3.66343329,1957.6,1956.6,0.0011]
[1772818727143,0.49452089,1957.7,1956.6,0.0011]
[1772818727313,5.10878505,1957.8,1956.6,0.49495125]
[1772818727519,0.001,1957.8,1956.6,0.49495125]
[1772818728215,0.001,1957.8,1956.8,0.49385125]
[1772818728414,0.001,1957.8,1957.0,0.49385125]
[1772818728716,0.001,1958.0,1956.8,0.14948499]
[1772818728717,0.001,1958.0,1957.2,0.49385125]
[1772818728920,1.27621872,1959.0,1957.7,0.49385125]
[1772818729235,1.27603103,1959.2,1957.9,1.27687828]
[1772818729734,1.27603103,1959.2,1958.0,0.49385125]
[1772818730034,1.77055192,1959.2,1957.9,2.26287828]
[1772818731040,0.49452089,1959.1,1957.8,5.10751315]
[1772818731250,1.77068219,1959.0,1957.8,1.2769435]
[1772818731442,0.49452089,1958.9,1957.8,1.2769435]
[1772818731914,1.2759659,1959.3,1957.9,0.49385125]
[1772818732320,3.81940995,1959.4,1957.9,0.49385125]
[1772818732515,1.27594628,1959.4,1957.9,0.49385125]
[1772818733322,0.001,1959.6,1958.3,0.49385125]
[1772818733657,0.001,1959.6,1958.4,0.49385125]
[1772818734019,0.001,1959.6,1958.5,0.99]
[1772818734222,0.49452089,1959.5,1958.0,1.77066432]
[1772818734431,0.49452089,1959.5,1958.0,2.76166432]
[1772818734851,0.001,1959.6,1958.1,0.49385125]
[1772818735340,0.49452089,1959.5,1958.2,1.27668266]
[1772818736333,0.49452089,1959.5,1958.1,1.77059445]
[1772818737025,0.46252705,1959.2,1957.7,1.77207518]
[1772818737565,0.46252705,1959.0,1957.7,2.76407518]
[1772818738048,0.46252705,1958.9,1957.4,1.27717239]
[1772818738830,0.46252705,1958.9,1957.4,1.77223884]
[1772818739025,0.46252705,1958.9,1957.5,0.49506645]
[1772818739649,1.2762916,1958.8,1957.6,1.77214041]
[1772818739851,1.2762916,1958.8,1957.7,0.49506645]
[1772818740058,5.56668336,1959.2,1957.7,0.49506645]
[1772818740841,5.10415631,1959.2,1957.7,0.49506645]
[1772818741343,1.27678211,1959.6,1958.3,0.49506645]
[1772818741535,0.001,1959.4,1958.6,1.77148838]
[1772818741736,0.001,1959.4,1958.6,2.76448838]
[1772818742162,0.001,1959.4,1958.7,0.46150934]
[1772818742947,0.001,1959.4,1958.6,2.26942193]
[1772818743144,0.4984655,1959.4,1958.0,0.0011]
[1772818743471,2.84357238,1959.0,1958.0,0.0011]
[1772818743668,1.27622645,1958.9,1958.0,0.0011]
[1772818745265,7.94867674,1959.4,1958.0,0.0011]
[1772818745472,5.10387407,1959.3,1958.0,0.46260934]
[1772818745776,5.10387407,1959.3,1958.1,1.7382572]
[1772818745975,5.60133957,1959.3,1958.1,0.46150934]
[1772818746159,2.84357238,1958.8,1957.9,0.0011]
[1772818746469,2.34610688,1959.1,1957.9,1.27796993]
[1772818746857,2.84357238,1959.1,1957.9,1.27796993]
[1772818747175,2.84357238,1958.8,1957.9,0.0011]
[1772818747544,1.27635676,1958.7,1957.9,0.0011]
[1772818749052,1.27634255,1958.8,1957.9,0.46260934]
[1772818749252,1.27634255,1958.8,1957.9,0.0011]
[1772818749661,5.60253841,1958.9,1957.9,0.0011]
[1772818750173,5.10507291,1958.9,1957.9,0.0011]
[1772818752065,1.27622645,1958.9,1957.9,0.46260934]
[1772818752253,5.1039449,1959.3,1957.9,0.46260934]
[1772818753465,5.1039449,1959.3,1958.1,0.46150934]
[1772818753872,0.001,1958.8,1958.1,0.46150934]
[1772818754075,0.001,1958.8,1958.0,1.27786019]
[1772818754781,0.001,1958.8,1958.0,1.73936953]
[1772818754954,0.001,1958.8,1958.1,0.46150934]
[1772818755161,0.001,1958.8,1958.1,1.44950934]
[1772818755372,0.001,1958.8,1958.1,0.46150934]
[1772818755570,0.001,1958.8,1958.1,1.44950934]
[1772818756001,0.001,1958.8,1958.2,1.27668266]
[1772818756493,0.001,1958.8,1958.1,1.27669503]
[1772818756822,0.001,1958.8,1958.0,1.27787374]
[1772818757016,0.001,1958.8,1958.0,1.27791021]
[1772818757509,0.001,1958.8,1958.0,0.0011]
[1772818757706,0.4984655,1958.8,1958.0,0.0011]
[1772818758091,1.27635676,1958.7,1958.0,0.0011]
[1772818758509,0.4974655,1958.6,1958.0,0.0011]
[1772818759494,0.4974655,1958.6,1957.9,0.0011]
[1772818759919,2.34662418,1958.4,1957.9,0.0011]
[1772818760124,1.77408297,1958.3,1957.7,0.0011]
[1772818760427,0.4974655,1958.2,1957.2,0.003]
[1772818761124,2.84408968,1958.2,1957.2,0.003]
[1772818761511,0.4974655,1958.1,1957.2,0.003]
[1772818762223,1.27681307,1958.0,1957.2,0.003]
[1772818762620,5.10646989,1958.4,1957.2,0.003]
[1772818762621,0.4974655,1958.5,1957.2,0.46450934]
[1772818762920,6.35175629,1958.6,1957.4,0.46150934]
[1772818762921,1.246,1958.6,1957.4,0.46150934]
[1772818763121,1.27647335,1958.6,1957.4,0.46150934]
[1772818763503,1.77393885,1958.6,1957.4,0.46150934]
[1772818763703,1.27647335,1958.6,1957.4,0.46150934]
[1772818764135,5.10568773,1958.7,1957.4,0.46150934]
[1772818764136,1.27636706,1958.7,1957.4,0.46150934]
[1772818764304,0.001,1958.8,1957.6,0.46150934]
[1772818765931,0.001,1958.8,1957.7,0.982]
[1772818766120,0.001,1958.8,1957.8,0.46150934]
[1772818766321,0.001,1958.8,1957.9,0.46150934]
[1772818767416,0.001,1958.8,1958.3,0.46150934]
[1772818767636,0.001,1958.8,1958.2,2.70499376]
[1772818767637,0.001,1958.8,1958.5,0.46150934]
[1772818768311,0.001,1959.4,1958.5,0.46150934]
[1772818768539,0.001,1959.4,1958.7,0.46150934]
[1772818769128,0.001,1959.4,1958.6,1.27642193]
[1772818769335,0.001,1959.4,1958.1,0.46150934]
[1772818769836,0.4984655,1959.4,1958.1,0.46150934]
[1772818770136,0.4974655,1959.3,1958.1,0.46150934]
[1772818770534,0.4974655,1959.3,1958.2,1.27668266]
[1772818770535,1.27603103,1959.2,1958.2,1.27668266]
[1772818772145,1.27603103,1959.2,1958.3,0.45118472]
[1772818772434,1.77591239,1959.2,1958.0,2.25781307]
[1772818772836,1.77591239,1959.2,1958.0,1.27681307]
[1772818773538,1.77591239,1959.2,1958.0,1.72799779]
[1772818773717,0.49988136,1959.1,1957.6,2.70925868]
[1772818773922,0.49988136,1959.1,1957.6,1.72825868]
[1772818774841,1.27622645,1958.9,1957.6,1.27707396]
[1772818775138,1.27622645,1958.9,1957.7,0.45118472]
[1772818776950,5.10389775,1959.3,1957.9,0.45118472]
[1772818777116,5.60377911,1959.3,1957.9,0.45118472]
[1772818777828,5.10389775,1959.3,1957.9,0.45118472]
[1772818778219,5.10389775,1959.3,1958.0,0.98]
[1772818778424,0.001,1959.0,1958.0,1.43118472]
[1772818778734,0.001,1959.0,1958.1,0.45118472]
[1772818778924,0.001,1959.0,1958.2,1.27668266]
[1772818780446,0.001,1959.0,1958.3,0.45118472]
[1772818781132,0.001,1959.4,1958.5,0.45118472]
[1772818783123,0.001,1959.4,1958.7,0.45118472]
[1772818783948,0.001,1959.4,1958.9,0.45118472]
[1772818784137,0.001,1959.4,1959.0,0.978]
[1772818784343,1.27555755,1960.0,1959.1,0.45118472]
[1772818784540,1.27524994,1960.4,1959.1,0.45118472]
[1772818784952,1.27524994,1960.4,1959.2,1.42918472]
[1772818785250,5.10099979,1960.5,1959.4,1.7270855]
[1772818785648,5.10099979,1960.5,1959.5,0.45118472]
[1772818786063,1.2751849,1960.6,1959.5,0.45118472]
[1772818786736,1.27492477,1960.9,1959.5,0.45118472]
[1772818787133,1.27492477,1960.9,1959.7,0.45118472]
[1772818788435,5.59810357,1961.5,1959.7,0.45118472]
[1772818788436,5.098616,1961.4,1959.7,0.45118472]
[1772818788658,5.59849736,1961.4,1959.7,0.45118472]
[1772818788859,5.59849736,1961.4,1959.9,0.45118472]
[1772818789044,0.49988136,1961.1,1959.9,1.72673547]
[1772818789534,1.27472975,1961.2,1960.0,0.45118472]
[1772818789731,0.48431747,1961.1,1960.0,0.45118472]
[1772818789931,0.48431747,1961.1,1959.7,1.72685672]
[1772818790562,0.48431747,1961.1,1959.8,0.45118472]
[1772818790866,0.001,1960.4,1959.8,0.45118472]
[1772818791066,0.001,1960.4,1959.7,1.275672]
[1772818791265,0.48431747,1960.3,1958.7,0.45118472]
[1772818791438,0.001,1960.4,1958.7,0.45118472]
[1772818792553,0.001,1960.4,1958.9,0.45118472]
[1772818792746,0.001,1960.4,1959.1,0.45118472]
[1772818793163,0.001,1960.4,1959.2,1.27603103]
[1772818793377,0.001,1960.4,1959.3,0.45118472]
[1772818794659,0.48531747,1960.4,1959.0,0.974]
[1772818794865,0.48531747,1960.4,1959.1,1.27608367]
[1772818795182,1.275315,1960.3,1959.1,1.27608367]
[1772818795358,1.75963247,1960.3,1959.1,1.27608367]
[1772818796258,1.75963247,1960.3,1959.0,2.73874907]
[1772818796881,1.75963247,1960.3,1959.1,0.48863223]
[1772818797185,1.275315,1960.3,1959.1,0.48863223]
[1772818797349,5.10226001,1960.4,1959.1,0.48863223]
[1772818797350,0.001,1960.4,1959.3,0.48863223]
[1772818799456,0.001,1960.4,1959.5,0.48863223]
[1772818799655,0.001,1960.4,1959.6,0.972]
[1772818799968,0.001,1960.4,1959.6,1.46063223]
[1772818800469,0.001,1960.4,1959.7,0.48863223]
[1772818800665,0.001,1960.4,1959.6,0.972]
[1772818800881,0.001,1960.4,1959.5,0.48863223]
[1772818801691,0.001,1960.4,1959.6,1.27577056]
[1772818802006,0.001,1960.4,1959.7,0.4505909]
[1772818803323,1.27503598,1960.8,1959.7,0.4505909]
[1772818803478,1.75627905,1960.8,1959.7,0.4505909]
[1772818803816,1.75627905,1960.8,1959.7,1.72626552]
[1772818804419,0.46528542,1960.7,1959.6,1.27684579]
[1772818804916,0.46528542,1960.7,1959.6,1.72742511]
[1772818805277,1.27503598,1960.8,1959.7,0.4505909]
[1772818805511,1.27503598,1960.8,1959.6,1.27686969]
[1772818805512,2.12893509,1960.6,1959.6,1.27686969]
[1772818805824,1.2751849,1960.5,1959.6,0.0011]
[1772818806029,1.2751849,1960.5,1959.6,0.4516909]
[1772818806695,1.2749898,1960.8,1959.8,0.4505909]
[1772818807107,3.40392489,1960.8,1959.8,0.4505909]
[1772818807311,3.86921031,1960.8,1959.8,0.4505909]
[1772818807512,1.2749898,1960.8,1959.8,0.4505909]
[1772818807714,5.0999592,1961.0,1960.0,0.4505909]
[1772818807914,5.0999592,1961.0,1960.2,0.4505909]
[1772818808435,1.27485976,1961.0,1960.2,0.4505909]
[1772818808639,1.27584371,1961.1,1960.2,0.4505909]
[1772818809405,1.27580569,1961.1,1960.2,0.4505909]
[1772818809708,0.001,1961.1,1960.4,0.4505909]
[1772818812732,0.001,1961.1,1960.6,0.4505909]
[1772818813932,1.27433989,1961.9,1960.8,0.4505909]
[1772818814712,1.27433989,1961.9,1960.9,1.27492477]
[1772818814922,1.27433989,1961.9,1960.9,1.72551567]
[1772818815106,1.27433989,1961.9,1961.0,0.4505909]
[1772818815836,1.27433989,1961.9,1960.8,0.968]
[1772818816057,2.59522051,1961.7,1960.8,0.968]
[1772818816235,0.46628542,1961.7,1960.8,2.24294017]
[1772818816432,1.27433989,1961.9,1960.8,2.69355614]
[1772818816676,1.27433989,1961.9,1960.9,0.4505909]
[1772818816849,1.27433989,1961.9,1960.9,1.7254636]
[1772818817232,1.27433989,1961.9,1961.0,0.4505909]
[1772818817841,5.11433908,1961.8,1960.7,0.4505909]
[1772818818555,2.98540399,1961.8,1960.7,0.4505909]
[1772818818946,2.98540399,1961.8,1960.7,1.72562386]
[1772818818947,1.27440485,1961.7,1960.7,1.72562386]
[1772818819143,1.27440485,1961.7,1960.3,0.4505909]
[1772818819144,0.46628542,1961.5,1960.3,0.4505909]
[1772818819357,2.59351931,1961.3,1960.3,0.4505909]
[1772818819531,0.46628542,1961.3,1960.3,0.4505909]
[1772818820337,1.214,1961.6,1960.3,0.4505909]
[1772818821059,1.75584284,1961.4,1960.4,1.27524994]
[1772818821264,1.75584284,1961.4,1960.3,1.72585785]
[1772818821562,2.60847696,1961.0,1959.8,2.24361658]
[1772818821856,2.60847696,1961.0,1959.8,2.69420748]
[1772818822162,0.48124307,1960.9,1959.8,1.4185909]
[1772818822357,0.48124307,1960.9,1959.8,2.69421556]
[1772818823062,1.2749898,1960.8,1959.8,1.4185909]
[1772818823364,1.2749898,1960.8,1959.8,2.69422782]
[1772818823577,0.48124307,1960.6,1959.7,0.0011]
[1772818824673,2.60847696,1960.5,1959.7,0.0011]
[1772818824869,0.48124307,1960.4,1959.7,0.0011]
[1772818825064,1.275315,1960.3,1959.7,0.0011]
[1772818825581,1.75655807,1960.3,1959.7,0.0011]
[1772818826245,1.275315,1960.3,1959.7,0.0011]
[1772818826451,2.4869898,1960.8,1959.7,0.4516909]
[1772818826649,2.96823287,1960.8,1959.7,0.4516909]
[1772818826845,0.48124307,1960.5,1959.7,0.0011]
[1772818827076,2.12723389,1960.3,1959.7,0.0011]
[1772818827273,1.27538006,1960.2,1959.7,0.0011]
[1772818828179,1.27538006,1960.2,1959.9,0.0011]
[1772818828380,1.75662313,1960.2,1959.6,0.0011]
[1772818828675,0.48124307,1960.0,1959.4,0.0011]
[1772818829385,1.27557528,1959.9,1959.4,0.0011]
[1772818829686,0.48124307,1959.7,1958.5,0.4505909]
[1772818829980,2.60847696,1959.5,1958.5,0.4505909]
[1772818830150,0.48124307,1959.5,1958.3,0.4505909]
[1772818830349,3.79469385,1959.9,1958.3,0.4505909]
[1772818830350,0.48124307,1959.3,1958.3,0.4505909]
[1772818830550,0.48124307,1959.3,1958.2,2.82548565]
[1772818830551,2.12723389,1959.1,1958.2,2.82548565]
[1772818830887,0.48124307,1958.8,1957.7,1.27809174]
[1772818831125,1.207,1959.1,1957.8,0.4505909]
[1772818831305,1.27609616,1959.1,1958.0,0.4505909]
[1772818831499,1.27609616,1959.1,1958.0,0.4005909]
[1772818831885,1.74618481,1959.1,1958.0,0.4005909]
[1772818832101,1.27609616,1959.1,1958.0,0.4005909]
[1772818833618,5.57447331,1959.2,1958.0,0.4005909]
[1772818833789,0.47008865,1959.1,1958.0,1.67739897]
[1772818834219,0.47008865,1959.1,1958.1,0.47858448]
[1772818834718,5.10438466,1959.2,1958.1,0.47858448]
[1772818834900,5.57447331,1959.2,1958.1,0.47858448]
[1772818835208,0.47008865,1959.1,1958.1,0.47858448]
[1772818835820,1.2761613,1959.0,1958.1,0.47858448]
[1772818836331,0.47008865,1958.9,1957.8,0.47858448]
[1772818836693,2.59732254,1958.7,1957.7,0.0011]
[1772818836891,0.47008865,1958.7,1957.7,0.0011]
[1772818837630,0.47008865,1958.7,1957.7,1.27810831]
[1772818837994,1.27642193,1958.6,1957.7,1.75669279]
[1772818838193,1.27642193,1958.6,1957.7,0.47968448]
[1772818839822,0.47008865,1958.5,1957.7,0.0011]
[1772818840009,1.27655228,1958.4,1957.7,0.0011]
[1772818840412,1.27655228,1958.4,1957.8,0.0011]
[1772818842012,5.10620915,1958.6,1957.8,0.0011]
[1772818843627,0.47008865,1958.5,1957.8,0.0011]
[1772818844096,5.10568773,1958.8,1957.8,0.47968448]
[1772818845610,2.48127855,1958.9,1957.8,0.47968448]
[1772818846434,2.48127855,1958.9,1958.0,0.47858448]
[1772818847157,1.27627855,1958.9,1958.0,0.47858448]
[1772818848433,5.10590581,1959.1,1958.2,0.47858448]
[1772818848756,0.001,1959.1,1958.4,0.47858448]
[1772818849128,0.001,1959.1,1958.1,1.75533234]
[1772818849334,0.001,1959.1,1958.2,0.47858448]
[1772818849647,0.47108865,1959.1,1958.0,0.47858448]
[1772818850529,1.74624995,1959.0,1958.0,0.47858448]
[1772818850729,1.74624995,1959.0,1958.0,1.75539051]
[1772818850930,1.74624995,1959.0,1958.0,1.75539338]
[1772818851156,1.74624995,1959.0,1958.0,0.47858448]
[1772818851378,1.2761613,1959.0,1958.1,0.47858448]
[1772818851656,1.74624995,1959.0,1957.9,1.75539776]
[1772818851825,0.47008865,1958.9,1957.9,0.47858448]
[1772818852028,0.47008865,1958.9,1957.8,1.27804026]
[1772818852325,0.47008865,1958.9,1958.1,0.0011]
[1772818852527,2.95238025,1958.8,1958.1,0.0011]
[1772818854454,1.74638025,1958.8,1958.1,0.0011]
[1772818856062,1.2762916,1958.8,1958.1,0.0011]
[1772818856459,1.2762916,1958.8,1958.1,1.7471975]
[1772818857061,1.2762916,1958.8,1958.1,0.47045768]
[1772818857290,1.2762916,1958.8,1958.1,0.0011]
[1772818857433,1.73426218,1958.8,1958.1,0.0011]
[1772818857757,1.73426218,1958.8,1958.0,0.0011]
[1772818857758,0.45797058,1958.6,1958.0,0.0011]
[1772818858550,1.2764871,1958.5,1958.0,0.0011]
[1772818858748,2.58520447,1958.4,1957.7,0.0011]
[1772818858936,0.45797058,1958.3,1957.7,0.0011]
[1772818859148,0.45797058,1958.1,1957.2,1e-08]
[1772818859733,0.45797058,1958.0,1957.2,1e-08]
[1772818860584,1.27687828,1957.9,1957.2,1e-08]
[1772818861119,1.27655228,1958.5,1957.2,1e-08]
[1772818861481,0.45797058,1958.4,1957.2,1e-08]
[1772818861808,1.27655228,1958.5,1957.2,1e-08]
[1772818862181,1.74240201,1958.5,1957.2,1e-08]
[1772818862392,1.27655228,1958.5,1957.2,1e-08]
[1772818862592,5.10594842,1958.6,1957.2,1.27733497]
[1772818862916,5.10594842,1958.6,1957.3,0.48241141]
[1772818863219,5.10594842,1958.7,1957.5,0.48241141]
[1772818863609,0.46584973,1958.6,1957.5,0.48241141]
[1772818864389,1.27635676,1958.7,1957.5,0.48241141]
[1772818864819,1.27635676,1958.7,1957.7,0.48241141]
[1772818865595,2.48233352,1958.8,1957.7,0.48241141]
[1772818865822,1.27633352,1958.8,1957.7,0.48241141]
[1772818867018,0.46684973,1959.0,1957.9,0.48241141]
[1772818869036,1.27622645,1958.9,1958.0,1.75922448]
[1772818869212,1.27622645,1958.9,1958.1,0.48241141]
[1772818869398,1.27622645,1958.9,1957.7,0.48241141]
[1772818869598,0.46584973,1958.8,1957.7,0.48241141]
[1772818870199,1.27720454,1959.0,1957.7,0.48241141]
[1772818870405,0.46584973,1958.9,1957.7,0.48241141]
[1772818870605,0.46584973,1958.9,1957.8,0.48241141]
[1772818870811,1.27720454,1959.0,1957.8,0.48241141]
[1772818871003,0.001,1959.0,1958.0,0.48241141]
[1772818871327,0.001,1959.0,1958.2,0.48241141]
[1772818873103,0.001,1959.0,1958.2,1.75905691]
[1772818873307,0.001,1959.0,1958.3,0.48241141]
[1772818875028,0.001,1959.0,1958.4,1.27655228]
[1772818875231,0.001,1959.0,1958.2,1.27664229]
[1772818875749,0.001,1959.0,1958.2,1.7590537]
[1772818876119,0.001,1958.9,1958.2,1.7590537]
[1772818877208,0.001,1958.9,1958.3,0.48241141]
[1772818879518,0.001,1958.9,1958.4,0.48241141]
[1772818880726,0.001,1958.9,1958.3,1.27661256]
[1772818880727,0.001,1958.9,1958.1,4.49900039]
[1772818881061,0.46584973,1958.6,1957.6,0.48241141]
[1772818881214,1.2764871,1958.5,1957.7,1.27700873]
[1772818881547,1.74233683,1958.5,1957.7,0.48241141]
[1772818882112,1.2764871,1958.5,1957.7,0.48241141]
[1772818882340,5.57136426,1958.7,1957.7,0.48241141]
[1772818883335,0.46584973,1958.6,1957.8,1.2769435]
[1772818883571,0.46584973,1958.6,1957.7,1.75941078]
[1772818885332,0.46584973,1958.6,1957.8,0.48241141]
[1772818885517,1.2764871,1958.5,1957.9,1.27687828]
[1772818885716,1.27635676,1958.8,1957.9,1.75928969]
[1772818885930,1.27635676,1958.8,1957.9,1.27687828]
[1772818886130,1.27635676,1958.8,1957.9,1.75928969]
[1772818886810,0.46584973,1958.7,1957.6,1.75948537]
[1772818887019,2.59813101,1958.6,1957.6,1.75948537]
[1772818887450,1.27655228,1958.4,1957.7,0.48241141]
[1772818887699,5.10620915,1958.5,1957.7,0.48241141]
[1772818887870,1.66984973,1958.8,1957.7,0.48241141]
[1772818888187,1.27635676,1958.7,1957.7,0.48241141]
[1772818889056,0.46584973,1958.6,1957.7,0.48241141]
[1772818889647,1.2764871,1958.5,1957.7,1.75937803]
[1772818891128,1.2764871,1958.5,1957.7,1.75941834]
[1772818891129,1.74233683,1958.5,1957.7,1.75941834]
[1772818891586,1.27661747,1958.3,1957.6,0.48241141]
[1772818892552,1.27642193,1958.6,1957.6,0.48241141]
[1772818893779,1.27642193,1958.6,1957.7,1.73357223]
[1772818894190,1.27642193,1958.6,1957.8,0.4565635]
[1772818894562,5.58036768,1958.7,1957.8,0.4565635]
[1772818894563,1.27640727,1958.7,1957.8,0.4565635]
[1772818894890,1.75114102,1958.7,1957.8,0.4565635]
[1772818895691,1.75114102,1958.7,1957.8,1.73346364]
[1772818895997,0.47473375,1958.6,1957.8,1.73346364]
[1772818896567,1.27640727,1958.7,1957.9,0.4565635]
[1772818897265,1.75114102,1958.7,1957.9,0.4565635]
[1772818897877,1.75114102,1958.7,1958.0,1.27681307]
[1772818898896,1.75114102,1958.7,1957.9,1.73339428]
[1772818899270,0.001,1958.6,1957.9,1.73339428]
[1772818899601,0.001,1958.6,1958.1,0.4565635]
[1772818899896,0.001,1958.6,1958.2,1.27668266]
[1772818900098,0.001,1958.6,1958.1,1.73327325]
[1772818900308,0.47573375,1958.6,1957.7,0.4565635]
[1772818901901,0.47473375,1958.5,1957.7,0.4565635]
[1772818902083,1.27655228,1958.4,1957.7,0.4565635]
[1772818902271,0.47473375,1958.3,1957.3,1.73489373]
[1772818902596,2.60701503,1958.3,1957.4,0.4565635]
[1772818903110,0.47473375,1958.3,1957.4,0.4565635]
[1772818904214,1.27668266,1958.2,1957.5,1.2771392]
[1772818904372,0.47473375,1958.1,1957.3,0.0011]
[1772818904573,0.47473375,1957.9,1957.3,0.0011]
[1772818905278,1.202,1958.1,1957.3,0.0011]
[1772818905513,1.75141641,1958.2,1957.4,0.4565635]
[1772818905674,1.27668266,1958.2,1957.4,0.4565635]
[1772818906394,5.58146442,1958.4,1957.5,1.2771392]
[1772818906984,5.58146442,1958.4,1957.5,1.7337027]
[1772818907180,5.58146442,1958.4,1957.5,0.4565635]
[1772818907700,0.47473375,1958.3,1957.3,0.0011]
[1772818907900,0.47473375,1958.1,1957.3,0.0011]
[1772818908302,1.27687828,1957.9,1957.3,0.0011]
[1772818908505,1.75161203,1957.9,1957.3,0.0011]
[1772818908705,0.47473375,1957.7,1957.0,0.0011]
[1772818909798,3.99771384,1957.9,1957.0,0.4576635]
[1772818910100,4.47244759,1957.9,1957.0,0.4576635]
[1772818910404,4.47244759,1957.9,1957.0,1.73507981]
[1772818910782,4.47244759,1957.9,1957.1,0.0011]
[1772818911788,1.27687828,1957.9,1957.1,0.4576635]
[1772818912596,1.75161203,1957.9,1957.1,1.7350482]
[1772818912797,1.75161203,1957.9,1957.1,1.2784847]
[1772818913183,1.75161203,1957.9,1957.1,0.0011]
[1772818913387,1.75161203,1957.9,1957.1,1.27849274]
[1772818913977,1.75161203,1957.9,1957.1,1.73505624]
[1772818914217,1.27687828,1957.9,1957.2,0.4565635]
[1772818914379,5.10751315,1958.0,1957.3,1.2772697]
[1772818914919,5.10751315,1958.0,1957.2,1.73389773]
[1772818916121,5.10751315,1958.0,1957.2,1.7338648]
[1772818916614,5.58051768,1958.0,1957.2,0.4565635]
[1772818916821,5.58051768,1958.0,1957.2,1.73389298]
[1772818917840,5.58051768,1958.0,1957.2,1.73389188]
[1772818918053,5.58051768,1958.0,1957.2,0.4565635]
[1772818918205,0.47300453,1957.9,1957.1,0.0011]
[1772818918731,1.74994803,1957.8,1957.1,0.0011]
[1772818919938,1.2769435,1957.8,1957.1,0.46656997]
[1772818921101,1.2769435,1957.8,1957.1,1.74395277]
[1772818921426,2.13228128,1957.6,1957.1,0.0011]
[1772818921727,0.47300453,1957.5,1957.1,0.0011]
[1772818922099,0.4540455,1957.4,1956.9,1e-08]
[1772818922504,2.13228128,1957.1,1956.6,0.0011]
[1772818922703,1.2774655,1957.0,1956.6,0.0011]
[1772818923005,0.4540455,1956.9,1956.1,0.48457722]
[1772818923309,0.4540455,1956.9,1956.1,1.76262884]